Cogmind - Beta 16 @@@ ROGUE MODE // 2025.10.25 @ 18:56:00 Player: Dosh Result: Destroyed by G-67 Veteran with Plasma Rifle Performance ------------- Evolutions (6) 3000 Regions Visited (25) 5000 Robots Destroyed (381) 1905 Value Destroyed (16719) 16719 Prototype IDs (41) 820 Alien Tech Used (0) 0 Bonus (9466) 9466 TOTAL SCORE: 36910 Bonus ------- High Alert Combat Kills 2399 Follower Combat Kills 2706 Entered Garrisons 1200 Used RIF Installer 3500 Aligned with FarCom 300 Friendly Fire -639 Cogmind --------- Core Integrity 0/1150 Matter 216/300 Energy 100/100 System Corruption 32% Temperature Cool (9) Movement Walking (260) Ox2 Location -4/Factory Parts ------- > --- POWER (2) -------- (None) > --- PROPULSION (6) --- Centrium Leg > --- UTILITY (8) ------ Huge Storage Unit Graphene Brace > --- WEAPON (3) ------- (None) > --- INVENTORY (25) --- Biometal Heavy Treads Superbattery (1500) Quantum Capacitor Improved Hacking Suite Relay Coupler [Grunt] (44) Relay Coupler [Sentry] (19) Relay Coupler [Sentry] (21) Relay Coupler [Sentry] (21) Advanced Plasma Rifle Heavy Proton Cannon Enhanced Nova Cannon Enhanced Nova Cannon Missile Launcher Neutron Missile Launcher Improved Remote Datajack Peak State ------------ > --- POWER ------------ Quantum Reactor Light Quantum Reactor > --- PROPULSION ------- Advanced Medium Treads Advanced Medium Treads Biometal Heavy Treads Biometal Heavy Treads > --- UTILITY ---------- Advanced Cooling System Huge Storage Unit Advanced Terrain Scanner Layered Heavy Armor Plating Force Field Relay Coupler [Grunt] Relay Coupler [Sentry] > --- WEAPON ----------- Cooled Particle Cannon Advanced Plasma Cannon Enhanced Nova Cannon > --- INVENTORY -------- Quantum Reactor Light Quantum Reactor Centrium Leg Centrium Leg Heavy Shield Leg Heavy Shield Leg Superbattery Layered Medium Armor Plating Graphene Brace Improved Hacking Suite Relay Coupler [NC] Relay Coupler [Grunt] Relay Coupler [Sentry] Relay Coupler [Sentry] Relay Coupler [Sentry] Relay Coupler [Sentry] Relay Coupler [Hunter] Long-range Proton Cannon Enhanced Nova Cannon Enhanced Nova Cannon Missile Launcher Improved Remote Datajack [Rating: 139] Favorites ----------- Power Light Quantum Reactor Engine Deuterium Engine Power Core Light Nuclear Core Reactor Light Quantum Reactor Propulsion Potential Leg Treads Heavy Treads Leg Potential Leg Utility Huge Storage Unit Device Force Field Storage Huge Storage Unit Processor Advanced Targeting Computer Hackware Relay Coupler [Grunt] Protection Layered Medium Armor Plating Weapon Cooled Particle Cannon Energy Gun EM Pulse Gun Energy Cannon Cooled Particle Cannon Ballistic Gun Enhanced Autogun Ballistic Cannon Heavy Linear Accelerator Launcher Improved Grenade Launcher Special Weapon Improved Remote Datajack Special Melee Weapon Datajack Build | -11 -10 -10 -9 -9 -9 -8 -8 -8 -8 -8 -7 -7 -7 -7 -6 -6 -6 -6 -5 -5 -5 -5 -4 -4 -4 ------- Run | Yrd Mat Min Mat Min Exi Min Mat Gar Mat Gar Fac Was Fac Gar Fac Was Fac Gar Fac Gar Fac Gar Fac Was Fac Slots Evolved 12 | . . . 2 . . . 2 . . . 2 . . . 2 . . . 2 . . . 2 . . Power 1 | . . . . . . . . . . . . . . . 1 . . . . . . . . . . Propulsion 4 | . . . 1 . . . . . . . 1 . . . . . . . 1 . . . 1 . . Utility 6 | . . . 1 . . . 2 . . . 1 . . . . . . . 1 . . . 1 . . Weapon 1 | . . . . . . . . . . . . . . . 1 . . . . . . . . . . Parts Attached 159 | 6 7 . 11 4 3 2 11 4 6 7 6 7 2 7 4 2 4 6 3 17 10 12 4 . 14 Power 17 | 1 1 . . 1 . 1 1 1 . 1 . 1 . . 2 . . 1 . 2 . 2 . . 2 Engine 4 | 1 . . . . . . 1 1 . 1 . . . . . . . . . . . . . . . Core 3 | . 1 . . 1 . 1 . . . . . . . . . . . . . . . . . . . Reactor 10 | . . . . . . . . . . . . 1 . . 2 . . 1 . 2 . 2 . . 2 Propulsion 39 | 2 1 . 2 3 2 1 1 . 2 1 4 3 . . . 2 . . 1 5 . 3 2 . 4 Treads 23 | 2 1 . 2 3 . . . . . 1 3 3 . . . 2 . . 1 . . 3 2 . . Leg 16 | . . . . . 2 1 1 . 2 . 1 . . . . . . . . 5 . . . . 4 Wheel . | . . . . . . . . . . . . . . . . . . . . . . . . . . Hover . | . . . . . . . . . . . . . . . . . . . . . . . . . . Flight . | . . . . . . . . . . . . . . . . . . . . . . . . . . Utility 78 | 1 2 . 4 . 1 . 6 2 4 4 2 3 2 3 2 . 3 3 2 9 10 6 2 . 7 Device 16 | . . . 2 . . . 1 . . . 1 1 2 . . . 1 . . 3 3 . 1 . 1 Storage 6 | 1 1 . . . 1 . . . . . 1 . . . . . . . . . 1 1 . . . Processor 1 | . . . . . . . 1 . . . . . . . . . . . . . . . . . . Hackware 35 | . . . . . . . 1 . 1 2 . 1 . 2 1 . 2 2 2 6 5 5 1 . 4 Protection 20 | . 1 . 2 . . . 3 2 3 2 . 1 . 1 1 . . 1 . . 1 . . . 2 Artifact . | . . . . . . . . . . . . . . . . . . . . . . . . . . Weapon 25 | 2 3 . 5 . . . 3 1 . 1 . . . 4 . . 1 2 . 1 . 1 . . 1 Energy Gun 2 | 2 . . . . . . . . . . . . . . . . . . . . . . . . . Energy Cannon 7 | . . . . . . . 2 . . . . . . 2 . . 1 . . 1 . 1 . . . Ballistic Gun 7 | . 2 . 4 . . . 1 . . . . . . . . . . . . . . . . . . Ballistic Cannon 2 | . . . . . . . . . . . . . . 2 . . . . . . . . . . . Launcher 3 | . . . 1 . . . . 1 . . . . . . . . . 1 . . . . . . . Special Weapon 3 | . . . . . . . . . . 1 . . . . . . . 1 . . . . . . 1 Impact Weapon . | . . . . . . . . . . . . . . . . . . . . . . . . . . Slashing Weapon . | . . . . . . . . . . . . . . . . . . . . . . . . . . Piercing Weapon . | . . . . . . . . . . . . . . . . . . . . . . . . . . Special Melee Weapon 1 | . 1 . . . . . . . . . . . . . . . . . . . . . . . . Unidentified Prototypes 4 | . . . 1 . . . 1 . . . . . . . 1 . 1 . . . . . . . . Parts Lost 38 | . . . . . . 1 . 3 1 1 . . . 1 1 . . 1 . . . 4 . . 25 Power 7 | . . . . . . 1 . 1 . . . . . . . . . . . . . 1 . . 4 Propulsion 9 | . . . . . . . . 1 . . . . . . . . . . . . . . . . 8 Utility 16 | . . . . . . . . 1 1 1 . . . 1 . . . 1 . . . 2 . . 9 Weapon 6 | . . . . . . . . . . . . . . . 1 . . . . . . 1 . . 4 Highest Loss Streak 10 | . . . . . . 1 . 2 1 1 . . . 1 1 . . 1 . . . 1 . . 10 To Critical Strikes 1 | . . . . . . . . . . . . . . . 1 . . . . . . . . . . Average Backups 19 | . 10 15 14 15 15 18 19 19 19 20 19 20 19 19 19 18 20 21 19 22 22 21 22 23 21 Power 1 | . 1 1 1 1 1 1 1 1 1 1 1 1 2 2 1 2 2 2 2 2 2 1 2 2 1 Propulsion 3 | . . 4 3 2 2 4 5 5 6 6 4 4 3 3 3 2 3 2 2 3 3 3 4 4 5 Utility 8 | . 3 5 6 7 7 8 6 6 6 7 8 9 9 9 10 11 10 12 9 11 12 12 11 12 9 Weapon 4 | . 3 3 3 3 4 4 3 4 4 4 4 4 4 4 3 2 4 4 5 5 4 4 5 5 4 Tool/Special . | . . . . . . . . . . . . . . . . . . . . . . . . . . Unused Backups 47 | . 1 2 8 1 . . 3 . 5 2 . 4 . 1 . . 1 . . 5 . 1 . . 13 Power 6 | . . 1 . . . . . . 1 . . 2 . . . . . . . 2 . . . . . Propulsion 15 | . . . 2 1 . . 2 . 4 . . 2 . . . . . . . 3 . . . . 1 Utility 12 | . . 1 1 . . . . . . 2 . . . . . . 1 . . . . 1 . . 6 Weapon 14 | . 1 . 5 . . . 1 . . . . . . 1 . . . . . . . . . . 6 Tool/Special . | . . . . . . . . . . . . . . . . . . . . . . . . . . Average Slot Usage (%) 86 | . 99 100 99 100 100 99 99 99 90 92 99 72 61 64 70 78 73 72 79 86 82 81 82 84 78 Engine 2 | . . . . . . . 8 9 9 9 7 3 . . . . . . . . . . . . . Core 2 | . 13 14 10 11 11 10 . . . . . . . . . . . . . . . . . . . Reactor 5 | . . . . . . . . . . . . 3 7 7 12 13 13 13 11 11 11 11 10 10 9 Treads 12 | . 27 28 33 33 27 5 . . . 2 12 16 15 15 13 13 13 13 14 2 . 2 20 21 16 Leg 9 | . . . . . 5 27 27 26 27 24 17 6 . . . . . . . 14 16 14 . . 1 Device 9 | . . . 10 11 11 11 9 9 8 2 6 4 7 9 13 13 12 11 10 12 6 11 10 10 14 Storage 7 | . 14 14 11 11 11 11 9 9 9 9 7 7 7 7 6 6 6 6 5 5 5 5 5 5 5 Processor 2 | . . . . . . . 8 9 9 9 7 . . . . . . . . . . . . . . Hackware 5 | . . . . . . . 3 6 1 6 7 4 . 5 4 6 6 2 10 14 17 10 14 15 10 Protection 9 | . 13 14 11 11 11 11 14 11 8 11 15 6 7 7 7 6 6 10 10 5 4 5 5 5 4 Energy Cannon 7 | . . . . . . . 1 17 17 17 14 14 14 6 . 10 . 3 1 9 11 13 10 10 9 Ballistic Gun 6 | . 26 28 21 22 22 21 16 . . . . . . . . . . . . . . . . . . Ballistic Cannon 1 | . . . . . . . . . . . . . . 2 6 1 6 6 5 1 . . . . . Special Weapon 1 | . . . . . . . . . . . . . . . 2 5 5 2 3 4 4 2 5 5 4 Peak Build Rating 139 | 6 14 14 22 22 41 42 54 54 56 61 69 81 81 81 92 88 93 94 97 122 128 131 133 132 139 Average Rating 70 | 4 13 14 20 22 26 40 51 52 53 57 68 73 80 76 88 83 90 92 96 115 115 124 131 132 129 On Entrance 67 | . 6 14 14 22 22 41 42 54 50 56 61 69 80 80 77 84 88 91 85 97 119 127 121 132 132 Avg Prop Armor Cover (%) 5 | . . . . . 7 7 . . . 5 7 5 . . . . 7 . 3 5 14 . . . 18 Naked Turns . | . . . . . . . . . . . . . . . . . . . . . . . . . . Heaviest Build 179 | 11 36 36 39 38 58 59 71 80 83 83 127 157 157 157 179 167 167 179 168 159 167 175 164 163 174 Greatest Support 210 | 40 40 40 60 60 60 70 75 75 80 80 75 140 140 140 140 140 140 140 163 150 150 180 210 210 210 Greatest Overweight (x) 3 | 2 . . . . . . . 1 1 1 2 3 1 1 1 1 2 1 1 1 1 2 . . 1 Average Overweight (x) . | . . . . . . . . . . . 1 1 1 . 1 1 1 1 1 . . . . . . Largest Inventory Capacity 25 | 8 15 15 15 15 20 20 20 20 20 20 25 25 25 25 25 25 25 25 25 25 25 25 25 25 25 Average Capacity 21 | 7 14 15 15 15 18 20 20 20 20 20 24 25 25 25 25 25 25 25 25 25 25 25 25 25 25 Most Carried 25 | 2 15 15 15 15 18 20 20 20 20 20 20 25 23 25 24 25 25 25 25 25 25 25 25 25 25 Average Carried 20 | . 10 14 14 14 15 18 19 19 19 19 19 21 22 23 23 22 24 24 22 24 23 23 24 25 24 Final Capacity 25 | 8 15 15 15 15 20 20 20 20 20 20 25 25 25 25 25 25 25 25 25 25 25 25 25 25 25 Final Carried 25 | 2 15 15 15 15 18 20 20 19 20 20 20 22 22 25 24 24 24 25 23 25 20 25 25 25 17 Class Distribution -------------------- 31% | Mutant 26% | Bothacker-Mutant 20% | Botlord-Tank 19% | Bothacker-Tank Dominant Class ---------------- Mutant | -10/Materials Mutant | -10/Mines Mutant | -9/Materials Mutant | -9/Mines Mutant | -9/Exiles Mutant | -8/Mines Mutant | -8/Materials Mutant | -8/Garrison Bothacker-Mutant | -8/Materials Bothacker-Mutant | -8/Garrison Bothacker-Mutant | -7/Factory Bothacker-Mutant | -7/Waste Bothacker-Mutant | -7/Factory Bothacker-Mutant | -7/Garrison Bothacker-Tank | -6/Factory Bothacker-Tank | -6/Waste Bothacker-Tank | -6/Factory Bothacker-Tank | -6/Garrison Bothacker-Tank | -5/Factory Botlord-Tank | -5/Garrison Botlord-Tank | -5/Factory Botlord-Tank | -5/Garrison Botlord-Tank | -4/Factory Botlord-Tank | -4/Waste Botlord-Tank | -4/Factory Resources | -11 -10 -10 -9 -9 -9 -8 -8 -8 -8 -8 -7 -7 -7 -7 -6 -6 -6 -6 -5 -5 -5 -5 -4 -4 -4 ----------- Run | Yrd Mat Min Mat Min Exi Min Mat Gar Mat Gar Fac Was Fac Gar Fac Was Fac Gar Fac Gar Fac Gar Fac Was Fac Matter Collected 9493 | 193 469 250 590 242 . 302 670 283 206 435 117 194 7 621 926 155 246 1120 335 515 504 700 . . 413 Remotely . | . . . . . . . . . . . . . . . . . . . . . . . . . . Salvage Created 15582 | . 655 139 1005 605 . 332 1064 433 1493 802 436 1673 112 700 576 946 84 638 366 985 644 1032 . . 862 Parts 720 | . 32 8 76 34 . 23 71 32 67 55 17 23 10 33 31 16 5 26 14 39 28 36 . . 44 Haulers Intercepted 17 | . 2 . 3 . . . 4 . 4 . 1 . . . 1 . . . . . 1 . . . 1 Recyclers Shooed 9 | . . 1 2 1 . . . . 1 . . . . . . . 1 . . . . . . . 3 Parts Field Recycled . | . . . . . . . . . . . . . . . . . . . . . . . . . . Retrieved Matter . | . . . . . . . . . . . . . . . . . . . . . . . . . . Parts Self-Destructed . | . . . . . . . . . . . . . . . . . . . . . . . . . . Prevented . | . . . . . . . . . . . . . . . . . . . . . . . . . . Parts Restored . | . . . . . . . . . . . . . . . . . . . . . . . . . . Kills | -11 -10 -10 -9 -9 -9 -8 -8 -8 -8 -8 -7 -7 -7 -7 -6 -6 -6 -6 -5 -5 -5 -5 -4 -4 -4 ------- Run | Yrd Mat Min Mat Min Exi Min Mat Gar Mat Gar Fac Was Fac Gar Fac Was Fac Gar Fac Gar Fac Gar Fac Was Fac Combat Hostiles Destroyed 319 | . 14 5 22 7 . 14 27 18 24 29 7 6 8 26 20 3 4 25 4 12 9 23 . . 12 Melee 2 | . . . . . . . . . 1 . . . . . . . . 1 . . . . . . . Guns 75 | . 14 5 18 7 . 6 25 . . . . . . . . . . . . . . . . . . Cannons 166 | . . . . . . . . 8 21 15 7 5 . 23 18 3 4 20 4 11 5 13 . . 9 AOE 68 | . . . 4 . . 8 2 10 2 14 . . 8 3 2 . . 4 . . 3 8 . . . Classes Destroyed 21 | . 3 3 3 2 . 2 . 1 . . . 1 . . . 1 1 1 . 1 1 1 . . . Worker 10 | . . . 1 1 . 2 2 . 1 . . . . . 1 . . . . . . . . . 2 Builder 6 | . . 1 . . . . . . . . . . . . 1 . . . 2 . . . . . 2 Tunneler 5 | . . 1 . 1 . 1 . . 1 . . . 1 . . . . . . . . . . . . Hauler 17 | . 2 . 3 . . . 4 . 4 . 1 . . . 1 . . . . . 1 . . . 1 Recycler 7 | . . . . 3 . 1 . . 1 . . . . . . . . . 1 . 1 . . . . Mechanic 1 | . . . . . . . . . . . . . . . . . . . 1 . . . . . . Operator 1 | . . . 1 . . . . . . . . . . . . . . . . . . . . . . Watcher 7 | . 2 . 2 . . . . . 3 . . . . . . . . . . . . . . . . Swarmer 95 | . . 3 7 . . 10 15 8 3 13 . . 8 18 . . . 1 . . 3 6 . . . Cutter 4 | . . . . . . . . . . . . . . . . . . 4 . . . . . . . Grunt 101 | . 14 2 7 4 . 2 4 3 12 8 3 . . 5 8 . 3 9 1 7 1 6 . . 2 Brawler 9 | . . . . . . 1 . . 1 . . . . . 4 . . 1 . . . 2 . . . Duelist 8 | . . . . 2 . . . . 1 . . . . . 2 . . 1 . . . 2 . . . Sentry 48 | . . . 8 1 . . 7 4 6 5 2 . . 3 4 . . 4 1 1 . 2 . . . Specialist 1 | . . . . . . . . . . . . . . . . . . . . . 1 . . . . Hunter 15 | . . . . . . 1 1 1 1 . 1 . . . 2 . . 4 . . 1 . . . 3 Programmer 29 | . . . . . . . . 2 . 4 1 . . . . . 1 1 2 5 3 3 . . 7 Behemoth 3 | . . . . . . . . . . . . . . . . . . . . 2 . 1 . . . Compactor 9 | . . . . . . . . . . . . 6 . . . 3 . . . . . . . . . Striker 2 | . . . . . . . . . . . . . . . . . . . . . . 2 . . . Surgeon 1 | . . . . . . . . . . . . . . . . . 1 . . . . . . . . Martyr 2 | . . . . . . . . . . . . . . . . 2 . . . . . . . . . Best Kill Streak 13 | . 4 5 10 5 . 5 5 5 5 7 2 1 5 13 8 1 3 5 4 4 4 5 . . 3 Combat Bots Only 13 | . 4 3 9 2 . 4 4 5 4 7 2 1 4 13 7 1 3 5 2 4 3 5 . . 3 Max Kills in Single Turn 4 | . 1 2 4 1 . 3 3 2 3 4 1 1 4 3 1 1 1 2 1 1 2 3 . . 1 Gunslinging 1 | . . 1 . . . . . . . . . . . . . . . . . . . . . . . Exploded 4 | . . . 4 . . 2 2 2 2 4 . . 4 3 1 . . 2 . . 2 3 . . . Melee 1 | . . . . . . . . . 1 . . . . . . . . 1 . . . . . . . Uniques/NPCs Destroyed . | . . . . . . . . . . . . . . . . . . . . . . . . . . Combat | -11 -10 -10 -9 -9 -9 -8 -8 -8 -8 -8 -7 -7 -7 -7 -6 -6 -6 -6 -5 -5 -5 -5 -4 -4 -4 -------- Run | Yrd Mat Min Mat Min Exi Min Mat Gar Mat Gar Fac Was Fac Gar Fac Was Fac Gar Fac Gar Fac Gar Fac Was Fac Hostile Shots Fired 2049 | . 40 15 58 11 . 26 66 93 91 58 90 . 18 236 140 . 18 175 28 106 53 160 . . 567 Missed 642 | . 14 4 17 4 . 8 16 24 25 13 34 . 8 69 55 . 2 48 8 23 24 39 . . 207 Deflected 14 | . . . . . . . . . . . . . . . . . . . . 12 . 2 . . . Hits 1407 | . 26 11 41 7 . 18 50 69 66 45 56 . 10 167 85 . 16 127 20 83 29 121 . . 360 Melee 37 | . . . . 2 . . . . . . . . . 3 7 . . 4 . . 1 20 . . . Projectile 1370 | . 26 11 41 5 . 18 50 69 66 45 56 . 10 164 78 . 16 123 20 83 28 101 . . 360 AOE 8 | . . . . . . . . . . . . . . . . . . 3 . . . 5 . . . Critical Strikes 53 | . . . 2 . . . 2 3 5 6 2 . . 2 4 . 1 3 2 6 . 6 . . 9 Actively Blocked 3 | . . . . . . . . . . . . . . . . . . . . 2 . . . . 1 Part Disruptions 7 | . . . . . . . . . . . . . . . . . 1 1 . . . . . . 5 Damage Taken 18422 | . 334 123 557 123 . 193 384 670 802 585 440 . 193 1794 396 . 159 1149 222 1411 650 1785 . . 6452 Core 2095 | . 38 11 82 . . 7 51 103 85 77 12 . . 113 31 . . 93 . 123 18 101 . . 1150 Absorbed by Shields 5815 | . . . . . . . 200 309 260 48 220 . . 266 441 . 165 956 231 741 110 1309 . . 559 Ignored by Resistances 63 | . . . . . . . . . 20 . . . . . . . . . . . . . . . 43 Regen/Repaired (Parts) 2474 | . 127 . 71 . . . 188 . 230 . . . . . . 17 . . 106 . 1133 . . . 602 Core Remaining (%) 77 | 100 . 80 . . . 77 . . . 42 . . . 82 . . . 85 . . . 75 . . . Volleys Fired 1176 | . 46 9 57 24 . 19 77 39 87 69 30 66 4 85 72 45 20 129 32 77 48 87 . 4 50 Largest 3 | . 2 2 2 2 . 2 2 2 2 2 2 2 2 2 1 2 1 1 1 3 3 3 . 1 2 Hottest 248 | . 46 46 50 50 . 58 58 66 60 90 60 60 126 90 70 70 70 90 70 185 185 248 . 7 218 Shots Fired 1944 | . 92 18 113 48 . 34 154 66 171 116 59 120 7 132 72 79 19 130 32 144 70 176 . 4 88 Gun 450 | . 92 18 112 48 . 27 153 . . . . . . . . . . . . . . . . . . Cannon 1268 | . . . . . . . . 57 170 94 58 113 4 119 64 72 12 96 27 125 42 145 . . 70 Launcher 52 | . . . 1 . . 7 1 9 1 9 . . 3 2 6 . . 2 . . 2 9 . . . Special 174 | . . . . . . . . . . 13 1 7 . 11 2 7 7 32 5 19 26 22 . 4 18 Kinetic 646 | . 92 18 112 48 . 27 153 . . . . . . 20 64 4 12 74 16 6 . . . . . Thermal 1072 | . . . . . . . . 57 170 94 58 113 4 99 . 68 . 22 11 119 42 145 . . 70 Explosive 52 | . . . 1 . . 7 1 9 1 9 . . 3 2 6 . . 2 . . 2 9 . . . Electromagnetic . | . . . . . . . . . . . . . . . . . . . . . . . . . . Robot Hit Streak 31 | . 12 5 10 14 . 15 10 14 31 18 9 18 11 14 8 24 7 9 5 14 6 19 . 17 20 Robot Miss Streak 7 | . 5 5 4 2 . 2 7 2 3 3 3 3 2 4 2 2 1 2 2 5 2 3 . . 3 Penetration Max 1 | . . . . . . . . . . . . . . 1 . . . . . . . . . . . Secondary Targets 7 | . 1 1 2 1 . . 2 . . . . . . . . . . . . . . . . . . Max Gunslinging Chain 1 | . 1 1 1 1 . . 1 . . . . . . . . . . . . . . . . . . Shots Hit Robots 1279 | . 67 12 76 32 . 20 96 39 128 57 45 98 3 79 50 66 15 72 13 97 46 109 . 4 55 Core Hits 546 | . 38 10 44 16 . 22 46 25 50 33 13 16 11 36 27 11 4 28 5 27 14 50 . . 20 Critical Kills 10 | . . . 1 . . 1 . . 1 . . 1 . . . . . . . 1 1 1 . . 3 Critical Parts Destroyed 6 | . 2 3 . . . . 1 . . . . . . . . . . . . . . . . . . Critical Strikes 29 | . 2 3 1 . . 1 1 . 1 . . 1 . 1 6 . 1 4 1 1 1 1 . . 3 Meltdown 8 | . . . . . . . . . 1 . . 1 . . . . . . . 1 1 1 . . 3 Destroy 8 | . 2 3 1 . . 1 1 . . . . . . . . . . . . . . . . . . Blast 13 | . . . . . . . . . . . . . . 1 6 . 1 4 1 . . . . . . Melee Attacks . | . . . . . . . . . . . . . . . . . . . . . . . . . . Impact . | . . . . . . . . . . . . . . . . . . . . . . . . . . Slashing . | . . . . . . . . . . . . . . . . . . . . . . . . . . Piercing . | . . . . . . . . . . . . . . . . . . . . . . . . . . Sneak Attacks . | . . . . . . . . . . . . . . . . . . . . . . . . . . Combat Hostiles . | . . . . . . . . . . . . . . . . . . . . . . . . . . Follow-up Attacks . | . . . . . . . . . . . . . . . . . . . . . . . . . . Damage Inflicted 44600 | . 989 258 1728 562 . 1051 1933 1979 3983 2405 1207 2765 827 2979 4225 1852 853 3778 1019 3003 1185 4294 . . 1725 Guns 5047 | . 979 176 1395 546 . 273 1678 . . . . . . . . . . . . . . . . . . Cannons 31407 | . . . . . . . . 1055 3585 1258 1207 2765 82 2584 3526 1843 840 3298 949 3003 935 3030 . . 1447 Explosions 6856 | . . . 235 . . 666 187 899 225 1147 . . 745 241 689 . . 274 . . 175 1259 . . 114 Melee . | . . . . . . . . . . . . . . . . . . . . . . . . . . Ramming 1290 | . 10 82 98 16 . 112 68 25 173 . . . . 154 10 9 13 206 70 . 75 5 . . 164 Kinetic 15096 | . 979 176 1395 546 . 273 1678 . . . . . . 1044 3526 144 840 3298 949 248 . . . . . Thermal 21524 | . . . . . . . . 1055 3585 1258 1207 2765 248 1540 . 1699 . . . 2755 935 3030 . . 1447 Explosive 6690 | . . . 235 . . 666 187 899 225 1147 . . 579 241 689 . . 274 . . 175 1259 . . 114 Electromagnetic . | . . . . . . . . . . . . . . . . . . . . . . . . . . Impact . | . . . . . . . . . . . . . . . . . . . . . . . . . . Slashing . | . . . . . . . . . . . . . . . . . . . . . . . . . . Piercing . | . . . . . . . . . . . . . . . . . . . . . . . . . . Highest Corruption 32 | . . . . . . . . 4 4 7 . 9 9 5 1 1 1 2 . 1 3 5 . 9 32 Average Corruption 4 | . . . . . . . . 3 4 6 . 8 6 5 1 1 1 1 . 1 2 4 . 9 16 Corruption Purged 8 | . . . . . . . . . . . . . 5 . . . . . . . 3 . . . . Corruption Blocked . | . . . . . . . . . . . . . . . . . . . . . . . . . . Effects 345 | . . . . . . . . 5 67 37 . 21 12 32 2 4 4 23 . 16 19 31 . 3 69 Message Errors 83 | . . . . . . . . 3 18 12 . 7 2 6 1 . 1 4 . 5 4 5 . . 15 Matter Fused 75 | . . . . . . . . 1 13 8 . 4 2 7 1 1 . 8 . 5 4 8 . . 13 Heat Flow Errors 40 | . . . . . . . . . 9 5 . 2 4 4 . 1 . 1 . 1 3 3 . . 7 Energy Discharges 35 | . . . . . . . . . 5 4 . 3 2 5 . . 1 3 . 1 . 4 . 2 5 Parts Rejected 3 | . . . . . . . . . . . . 1 . 1 . . . . . . 1 . . . . Parts Fused 5 | . . . . . . . . . 1 1 . . . . . . . 1 . . 1 . . . 1 Data Loss (minor) 44 | . . . . . . . . . 8 2 . 4 . 2 . 2 . 4 . 2 4 4 . 1 11 Data Loss (major) 13 | . . . . . . . . 1 2 1 . . . 2 . . 1 1 . 1 1 1 . . 2 Misfires 21 | . . . . . . . . . 4 3 . . 1 1 . . . 1 . 1 . 3 . . 7 Alerts 14 | . . . . . . . . . 3 1 . . 1 3 . . . . . . 1 2 . . 3 Misdirections 4 | . . . . . . . . . . . . . . . . . . . . . . . . . 4 Weapon Failures 8 | . . . . . . . . . 4 . . . . 1 . . 1 . . . . 1 . . 1 Overload Shots 12 | . . . . . . . . . . 1 . . 1 3 . . . 3 . 1 . 3 . . . Overflow Damage 1744 | . . . 8 . . 66 9 75 36 135 22 . 174 178 155 . 97 251 229 56 107 114 . . 32 Projectiles 1287 | . . . . . . . . 54 36 60 22 . . 177 155 . 97 251 229 56 46 94 . . 10 Explosions 387 | . . . 8 . . 41 . 21 . 75 . . 174 1 . . . . . . 30 20 . . 17 Melee 70 | . . . . . . 25 9 . . . . . . . . . . . . . 31 . . . 5 Knockbacks 44 | . . . . . . 1 1 . 1 . . . . 7 10 . 5 13 5 . . . . . 1 Impact 7 | . . . . . . 1 1 . 1 . . . . 3 . . . . . . . . . . 1 Kinetic 34 | . . . . . . . . . . . . . . 4 9 . 5 12 4 . . . . . . Secondary 3 | . . . . . . . . . . . . . . . 1 . . 1 1 . . . . . . Self-Inflicted Damage 282 | . . . . . . 21 . 36 . . . . 37 34 . . . . . . . 66 . . 88 Shots 8 | . . . . . . 1 . 1 . . . . 2 1 . . . . . . . 2 . . 1 Rammed 97 | . 4 10 16 4 . . . . . . . . . 23 1 1 1 26 3 . . . . . 8 Targets Rammed 138 | . 4 12 16 5 . 6 5 2 17 . . . . 23 1 1 1 26 3 . 3 2 . . 11 Kicked 38 | . . . . . . 6 5 2 17 . . . . . . . . . . . 3 2 . . 3 Crushed 3 | . . 2 . 1 . . . . . . . . . . . . . . . . . . . . . Highest Temperature 828 | . 60 72 14 . . . 144 72 221 259 84 279 283 237 29 195 . 142 . 828 254 661 . . 262 Average Temperature 71 | . 17 28 7 . . . 42 23 47 43 29 110 127 96 6 118 . 39 . 187 62 172 . . 111 Received Heat Transfer 3608 | . 174 51 219 33 . 27 100 136 368 185 122 . . 223 87 . 58 209 12 1054 70 151 . . 329 Effects 24 | . . . . . . . . . . . . 1 . . . . . . . 13 . 10 . . . Shutdowns 3 | . . . . . . . . . . . . . . . . . . . . . . 3 . . . Energy Bleed 1 | . . . . . . . . . . . . . . . . . . . . . . 1 . . . Interference 6 | . . . . . . . . . . . . 1 . . . . . . . 5 . . . . . Matter Decay 2 | . . . . . . . . . . . . . . . . . . . . 1 . 1 . . . Short Circuit 1 | . . . . . . . . . . . . . . . . . . . . . . 1 . . . Damage (minor) 1 | . . . . . . . . . . . . . . . . . . . . . . 1 . . . Damage (major) 9 | . . . . . . . . . . . . . . . . . . . . 6 . 3 . . . Damage (core) 1 | . . . . . . . . . . . . . . . . . . . . 1 . . . . . Siege Activations 1 | . . . . . . . . . . . . . . . . . . 1 . . . . . . . Total Turns 17 | . . . . . . . . . . . . . . . . . . 17 . . . . . . . Longest Duration 17 | . . . . . . . . . . . . . . . . . . 17 . . . . . . . Martial Activations . | . . . . . . . . . . . . . . . . . . . . . . . . . . Shielding Activations 8 | . . . . . . . . . . . . . . . . . . . . 4 . 4 . . . Total Turns 192 | . . . . . . . . . . . . . . . . . . . . 94 . 98 . . . Longest Duration 58 | . . . . . . . . . . . . . . . . . . . . 58 . 42 . . . Robots Disrupted . | . . . . . . . . . . . . . . . . . . . . . . . . . . Combat Hostiles . | . . . . . . . . . . . . . . . . . . . . . . . . . . Robots Corrupted 4 | . . . . . . 1 1 . . . . . . . . . . . 1 . 1 . . . . Combat Hostiles . | . . . . . . . . . . . . . . . . . . . . . . . . . . Parts Fried 6 | . . . . . . . . . . . . . . . . . . . 6 . . . . . . Impact Corruptions 7 | . . . . . . 2 1 . 1 . . . . . . . . . 1 . 1 . . . 1 Robots Melted 10 | . . . . . . . . . 1 . . 1 . . . . . . . 1 2 2 . . 3 Combat Hostiles 8 | . . . . . . . . . . . . 1 . . . . . . . 1 1 2 . . 3 Parts Melted 64 | . . . . . . . . 3 9 5 1 1 . 13 . . . . . 12 4 8 . . 8 Heat Transferred 27725 | . . . . . . . . 1237 4847 1591 1628 3774 187 2109 . 2331 . . . 3478 1055 3824 . . 1664 Parts Sabotaged . | . . . . . . . . . . . . . . . . . . . . . . . . . . Parts Stolen . | . . . . . . . . . . . . . . . . . . . . . . . . . . Parts Stripped . | . . . . . . . . . . . . . . . . . . . . . . . . . . Power Chain Reactions . | . . . . . . . . . . . . . . . . . . . . . . . . . . Alert | -11 -10 -10 -9 -9 -9 -8 -8 -8 -8 -8 -7 -7 -7 -7 -6 -6 -6 -6 -5 -5 -5 -5 -4 -4 -4 ------- Run | Yrd Mat Min Mat Min Exi Min Mat Gar Mat Gar Fac Was Fac Gar Fac Was Fac Gar Fac Gar Fac Gar Fac Was Fac Maximum Alert Level 5 | . . . 1 . . 1 1 2 1 4 2 . 1 4 3 1 1 4 2 3 3 5 3 1 . Low Security (%) 42 | 100 100 100 56 100 . 83 60 14 21 10 . 100 72 11 . 79 97 16 . . . . . . 100 Level 1 18 | . . . 43 . . 16 39 48 78 13 . . 27 16 . 20 2 2 1 9 . . . 100 . Level 2 20 | . . . . . . . . 37 . 24 100 . . 31 47 . . 36 98 52 80 4 . . . Level 3 14 | . . . . . . . . . . 44 . . . 36 52 . . 35 . 37 19 41 100 . . Level 4 3 | . . . . . . . . . . 7 . . . 4 . . . 8 . . . 40 . . . Level 5 . | . . . . . . . . . . . . . . . . . . . . . . 13 . . . High Security . | . . . . . . . . . . . . . . . . . . . . . . . . . . Max Security . | . . . . . . . . . . . . . . . . . . . . . . . . . . Peak Influence 1610 | . 146 70 322 153 . 223 361 563 367 1217 638 189 250 1141 876 287 223 1254 658 859 888 1610 844 274 156 Initial 844 | . . 1 . 98 . . 72 . 274 74 638 189 . 52 598 287 . 4 658 276 450 503 844 274 156 Average 375 | . 43 7 144 43 . 146 151 342 252 684 581 51 146 627 710 100 66 641 511 584 627 1213 814 251 49 Influence Increases 14155 | . 489 130 853 195 . 433 870 593 819 1193 231 4 271 1139 547 36 798 1310 211 783 1309 1287 . . 654 Destroy 0b10 Robot/C 7720 | . 280 100 500 140 . 280 540 360 480 740 140 . 160 580 400 . 360 540 100 400 640 680 . . 300 Destroy 0b10 Robot/NC 320 | . 20 10 45 25 . 20 30 . 50 . 5 . 5 . 15 . . . 25 5 35 . . . 30 Destroy Leader 1278 | . 88 20 174 30 . 50 138 20 144 30 52 . 20 40 82 . 70 30 30 40 116 40 . . 64 Allied During Kill 855 | . . . 61 . . . . . . 29 . . . 8 . . 242 31 11 67 319 68 . . 19 Successful Hack 254 | . 26 . 45 . . . 26 16 17 30 . . . 14 . . 33 14 . 28 5 . . . . Select Force Hacks 90 | . 60 . . . . . . . . . . . . . . . 30 . . . . . . . . Disable Machine 495 | . . . 15 . . . 45 15 45 45 . . 60 45 15 . 30 30 . . 15 30 . . 105 Anti-Garrison Action 1600 | . . . . . . . . 50 . 200 . . . 250 . . . 550 . 200 . 350 . . . Destroy Structure 1063 | . . . 13 . . 53 16 72 38 119 4 4 26 67 35 36 3 85 30 43 164 119 . . 136 Partial Spotted 15 | . . . . . . . . . 15 . . . . . . . . . . . . . . . . Lose Combat Pursuer 465 | . 15 . . . . 30 75 60 30 . 30 . . 135 . . 30 30 15 . 15 . . . . Influence Decreases 14155 | . 483 136 600 448 . 248 1054 31 1267 91 907 545 196 73 867 857 792 62 1070 319 1449 396 826 560 878 Entered New Map 5321 | . . 5 . 155 . . 113 1 289 41 579 352 . 23 543 534 . 2 596 119 409 216 766 510 68 Time Decay 5837 | . 483 131 390 293 . 238 551 . 668 . 278 173 196 . 294 323 385 . 374 . 510 . 60 50 440 Lost Part 250 | . . . . . . 10 . 30 10 10 . . . 10 10 . . 10 . . . 40 . . 120 Lost Ally 1090 | . . . 60 . . . . . . 40 50 20 . 40 20 . 190 50 100 200 80 140 . . 100 Purge Threat 1657 | . . . 150 . . . 390 . 300 . . . . . . . 217 . . . 450 . . . 150 Squads Dispatched 51 | . 6 1 2 . . . 5 . 4 . 1 . 1 . 5 . 5 . 3 . 7 . . . 11 Investigation 16 | . 6 1 . . . . . . 2 . . . 1 . . . 2 . . . 1 . . . 3 Extermination 8 | . . . . . . . . . . . 1 . . . . . 1 . 1 . 2 . . . 3 Reinforcement 14 | . . . 2 . . . . . 2 . . . . . 2 . 2 . 1 . 2 . . . 3 Assault 5 | . . . . . . . . . . . . . . . . . . . 1 . 2 . . . 2 Garrison 8 | . . . . . . . 5 . . . . . . . 3 . . . . . . . . . . Intercept . | . . . . . . . . . . . . . . . . . . . . . . . . . . Searches Triggered . | . . . . . . . . . . . . . . . . . . . . . . . . . . Construction Impeded 1 | . . . . . . . . . 1 . . . . . . . . . . . . . . . . Haulers Reinforced 3 | . . . . . . . . . . . . . . . 2 . . . . . 1 . . . . Active Scanning Responses . | . . . . . . . . . . . . . . . . . . . . . . . . . . Cargo Convoy Interrupts 1 | . . . . . . . . . . . . . . . . . . . . . . . . . 1 Stealth | -11 -10 -10 -9 -9 -9 -8 -8 -8 -8 -8 -7 -7 -7 -7 -6 -6 -6 -6 -5 -5 -5 -5 -4 -4 -4 --------- Run | Yrd Mat Min Mat Min Exi Min Mat Gar Mat Gar Fac Was Fac Gar Fac Was Fac Gar Fac Gar Fac Gar Fac Was Fac Distress Signals 23 | . 2 . 2 . . . 5 . 3 . 1 . . . 2 . . 1 1 1 1 . . . 4 Communications Jammed 211 | . . . . . . . . . . . . . . . . . . . . 2 94 33 . . 82 Distress Signals 211 | . . . . . . . . . . . . . . . . . . . . 2 94 33 . . 82 Times Spotted 553 | . 23 5 38 7 . 12 49 19 44 28 10 6 8 43 21 6 20 39 11 26 34 44 . 5 55 Peak Tracking Total 17 | . 4 3 4 2 . 3 8 6 3 4 3 3 4 9 6 3 5 8 3 5 6 7 . 2 17 Tactical Retreats 21 | . 1 . . . . 1 4 3 2 . 1 . . 4 . . 2 1 1 . 1 . . . . Traps | -11 -10 -10 -9 -9 -9 -8 -8 -8 -8 -8 -7 -7 -7 -7 -6 -6 -6 -6 -5 -5 -5 -5 -4 -4 -4 ------- Run | Yrd Mat Min Mat Min Exi Min Mat Gar Mat Gar Fac Was Fac Gar Fac Was Fac Gar Fac Gar Fac Gar Fac Was Fac Traps Triggered 38 | . 3 . . . . . . 1 1 1 1 . . 1 1 . . 3 2 8 3 7 1 . 5 Indirectly . | . . . . . . . . . . . . . . . . . . . . . . . . . . Trap Hack Attempts 30 | . 30 . . . . . . . . . . . . . . . . . . . . . . . . Triggered . | . . . . . . . . . . . . . . . . . . . . . . . . . . Disarmed 2 | . 2 . . . . . . . . . . . . . . . . . . . . . . . . Reprogrammed . | . . . . . . . . . . . . . . . . . . . . . . . . . . Reused . | . . . . . . . . . . . . . . . . . . . . . . . . . . Traps Extracted . | . . . . . . . . . . . . . . . . . . . . . . . . . . Installed . | . . . . . . . . . . . . . . . . . . . . . . . . . . Triggered . | . . . . . . . . . . . . . . . . . . . . . . . . . . Machines | -11 -10 -10 -9 -9 -9 -8 -8 -8 -8 -8 -7 -7 -7 -7 -6 -6 -6 -6 -5 -5 -5 -5 -4 -4 -4 ---------- Run | Yrd Mat Min Mat Min Exi Min Mat Gar Mat Gar Fac Was Fac Gar Fac Was Fac Gar Fac Gar Fac Gar Fac Was Fac Machines Disabled 53 | . . . 1 . . . 3 2 3 6 . . 4 7 1 . 2 6 . 4 1 6 . . 7 Max in Single Turn 4 | . . . 1 . . . 1 1 1 1 . . 4 2 1 . . 1 . 1 . 1 . . 2 Garrison Access 1 | . . . . . . . . . . . . . . . . . . . . . . . . . 1 Garrison Relay 16 | . . . . . . . . 1 . 2 . . . 1 . . . 4 . 3 . 5 . . . Phase Generator 2 | . . . . . . . . . . . . . . 1 . . . 1 . . . . . . . Machines Repaired . | . . . . . . . . . . . . . . . . . . . . . . . . . . Machines Dismantled . | . . . . . . . . . . . . . . . . . . . . . . . . . . Machines Sabotaged . | . . . . . . . . . . . . . . . . . . . . . . . . . . Overloaded Fab Kills . | . . . . . . . . . . . . . . . . . . . . . . . . . . Hacking | -11 -10 -10 -9 -9 -9 -8 -8 -8 -8 -8 -7 -7 -7 -7 -6 -6 -6 -6 -5 -5 -5 -5 -4 -4 -4 --------- Run | Yrd Mat Min Mat Min Exi Min Mat Gar Mat Gar Fac Was Fac Gar Fac Was Fac Gar Fac Gar Fac Gar Fac Was Fac Machines Accessed 93 | . 10 1 10 . 2 . 16 1 10 3 2 . 1 4 1 . 5 2 1 3 5 3 2 . 11 Terminals 62 | . 7 . 7 . . . 12 1 7 3 1 . . 4 1 . 3 2 . 3 1 3 1 . 6 Fabricators 4 | . . . . . . . . . . . 1 . . . . . . . . . 1 . . . 2 Repair Stations 9 | . 1 . 2 . . . 2 . 1 . . . . . . . . . . . 1 . . . 2 Recycling Units 2 | . 2 . . . . . . . . . . . . . . . . . . . . . . . . Scanalyzers 7 | . . . 1 . . . 1 . 1 . . . . . . . 1 . . . 1 . 1 . 1 Garrison Access 6 | . . . . . . . 1 . 1 . . . 1 . . . 1 . 1 . 1 . . . . Total Hacks 250 | . 34 1 34 . 2 . 50 2 31 6 4 . 3 5 3 . 17 5 2 3 16 4 2 . 26 Successful 123 | . 16 1 20 . 2 . 21 1 18 3 1 . 2 2 . . 9 1 2 3 10 . 1 . 10 Failed 123 | . 18 . 13 . . . 28 1 12 3 3 . 1 3 3 . 8 4 . . 6 4 1 . 15 Catastrophic 23 | . 2 . 1 . . . 2 . 1 1 . . . 2 1 . 3 . . . 1 2 1 . 6 Database Lockouts 4 | . . . 1 . . . 1 . 1 . . . . . . . . . . . . . . . 1 Manual 115 | . 19 . 22 . 1 . 33 1 16 1 2 . 1 . 3 . 3 . . . 2 . 1 . 10 Terminals 163 | . 26 . 28 . . . 37 2 18 6 2 . . 5 3 . 9 5 . 3 1 4 1 . 13 Fabricators 10 | . . . . . . . . . . . 2 . . . . . . . . . 2 . . . 6 Repair Stations 37 | . 5 . 5 . . . 10 . 7 . . . . . . . . . . . 8 . . . 2 Recycling Units 3 | . 3 . . . . . . . . . . . . . . . . . . . . . . . . Scanalyzers 21 | . . . 1 . . . 2 . 5 . . . . . . . 5 . . . 2 . 1 . 5 Garrison Access 13 | . . . . . . . 1 . 1 . . . 3 . . . 3 . 2 . 3 . . . . Terminal Hacks 38 | . 4 1 9 . 2 . 4 1 3 3 . . . 2 . . 2 1 . 3 . . . . 3 Record 1 | . . . . . 1 . . . . . . . . . . . . . . . . . . . . Robot Schematic 1 | . . . 1 . . . . . . . . . . . . . . . . . . . . . . Robot Analysis 2 | . . . 2 . . . . . . . . . . . . . . . . . . . . . . Prototype ID Bank 1 | . 1 . . . . . . . . . . . . . . . . . . . . . . . . Open Door 3 | . . 1 . . . . . . . 1 . . . . . . . . . 1 . . . . . Emergency Access Points 3 | . . . . . . . . . . 1 . . . 1 . . . . . 1 . . . . . Terminal Index 1 | . . . 1 . . . . . . . . . . . . . . . . . . . . . . Scanalyzer Index 2 | . 1 . 1 . . . . . . . . . . . . . . . . . . . . . . Alert Level 2 | . . . 1 . . . 1 . . . . . . . . . . . . . . . . . . Unreport Threat 7 | . . . 1 . . . 3 . 2 . . . . . . . . . . . . . . . 1 Locate Traps 1 | . 1 . . . . . . . . . . . . . . . . . . . . . . . . Recall Investigation 2 | . . . . . . . . . . . . . . . . . . . . . . . . . 2 Recall Reinforcements 1 | . . . . . . . . . 1 . . . . . . . . . . . . . . . . Hauler Manifests 3 | . 1 . 1 . . . . . . . . . . . . . 1 . . . . . . . . Zone Layout 2 | . . . 1 . . . . . . . . . . . . . 1 . . . . . . . . Garrison Registry 3 | . . . . . . . . 1 . 1 . . . 1 . . . . . . . . . . . Security Stations 2 | . . . . . . . . . . . . . . . . . . 1 . 1 . . . . . Proto ID Catalog 1 | . . . . . 1 . . . . . . . . . . . . . . . . . . . . Fabricator Hacks 6 | . . . . . . . . . . . 1 . . . . . . . . . 2 . . . 3 Network Status 1 | . . . . . . . . . . . 1 . . . . . . . . . . . . . . Load Schematic 3 | . . . . . . . . . . . . . . . . . . . . . 1 . . . 2 Build 2 | . . . . . . . . . . . . . . . . . . . . . 1 . . . 1 Repair Station Hacks 25 | . 4 . 4 . . . 7 . 6 . . . . . . . . . . . 4 . . . . Scan Component 14 | . 2 . 2 . . . 4 . 3 . . . . . . . . . . . 3 . . . . Repair 11 | . 2 . 2 . . . 3 . 3 . . . . . . . . . . . 1 . . . . Recycling Unit Hacks . | . . . . . . . . . . . . . . . . . . . . . . . . . . Scanalyzer 9 | . . . . . . . 1 . 1 . . . . . . . 3 . . . 2 . 1 . 1 Retrieve Study 9 | . . . . . . . 1 . 1 . . . . . . . 3 . . . 2 . 1 . 1 Garrison Access Hacks 10 | . . . . . . . 1 . 1 . . . 2 . . . 2 . 2 . 2 . . . . Unlock Access 6 | . . . . . . . 1 . 1 . . . 1 . . . 1 . 1 . 1 . . . . Coupler Status 4 | . . . . . . . . . . . . . 1 . . . 1 . 1 . 1 . . . . Unauthorized Hacks 35 | . 8 . 7 . . . 8 . 7 . . . . . . . 2 . . . . . . . 3 Terminals 31 | . 6 . 7 . . . 8 . 7 . . . . . . . 1 . . . . . . . 2 Assimilate 2 | . . . . . . . 2 . . . . . . . . . . . . . . . . . . Botnet 7 | . 1 . 2 . . . 1 . 2 . . . . . . . . . . . . . . . 1 Operators 2 | . . . . . . . . . . . . . . . . . 1 . . . . . . . 1 Skim 20 | . 5 . 5 . . . 5 . 5 . . . . . . . . . . . . . . . . Fabricators . | . . . . . . . . . . . . . . . . . . . . . . . . . . Repair Stations 1 | . . . . . . . . . . . . . . . . . . . . . . . . . 1 Patch 1 | . . . . . . . . . . . . . . . . . . . . . . . . . 1 Recycling Units 2 | . 2 . . . . . . . . . . . . . . . . . . . . . . . . Tunnel 2 | . 2 . . . . . . . . . . . . . . . . . . . . . . . . Scanalyzers . | . . . . . . . . . . . . . . . . . . . . . . . . . . Garrison Access 1 | . . . . . . . . . . . . . . . . . 1 . . . . . . . . Eject 1 | . . . . . . . . . . . . . . . . . 1 . . . . . . . . Data Cores Recovered 1 | . . . 1 . . . . . . . . . . . . . . . . . . . . . . Used . | . . . . . . . . . . . . . . . . . . . . . . . . . . Hacking Detections 75 | . 8 . 7 . . . 15 1 9 2 2 . 1 3 1 . 4 2 1 2 3 3 1 . 10 Full Trace Events 10 | . 2 . . . . . . . 1 . . . 1 1 . . . 1 . . 1 1 . . 2 Feedback Events 2 | . . . . . . . . . . . . . 1 . . . . . . . . . . . 1 Corruption 2 | . . . . . . . . . . . . . 1 . . . . . . . . . . . 1 Feedback Blocked . | . . . . . . . . . . . . . . . . . . . . . . . . . . Robot Schematics Acquired 1 | . . . 1 . . . . . . . . . . . . . . . . . . . . . . Robots Built 2 | . . . . . . . . . . . . . . . . . . . . . 1 . . . 1 Authchips 1 | . . . . . . . . . . . . . . . . . . . . . 1 . . . . Time 80 | . . . . . . . . . . . . . . . . . . . . . 40 . . . 40 Total Robot Build Rating 2 | . . . . . . . . . . . . . . . . . . . . . 1 . . . 1 Part Schematics Acquired . | . . . . . . . . . . . . . . . . . . . . . . . . . . Parts Built . | . . . . . . . . . . . . . . . . . . . . . . . . . . Authchips . | . . . . . . . . . . . . . . . . . . . . . . . . . . Time . | . . . . . . . . . . . . . . . . . . . . . . . . . . Total Part Build Rating . | . . . . . . . . . . . . . . . . . . . . . . . . . . Part Studies Acquired 4 | . . . . . . . 1 . 1 . . . . . . . 1 . . . 1 . . . . Parts Repaired 11 | . 2 . 2 . . . 3 . 3 . . . . . . . . . . . 1 . . . . Time 576 | . 58 . 98 . . . 168 . 178 . . . . . . . . . . . 74 . . . . Parts Recycled . | . . . . . . . . . . . . . . . . . . . . . . . . . . Recycled Matter . | . . . . . . . . . . . . . . . . . . . . . . . . . . Retrieved Matter . | . . . . . . . . . . . . . . . . . . . . . . . . . . Retrieved Components . | . . . . . . . . . . . . . . . . . . . . . . . . . . Parts Scanalyzed . | . . . . . . . . . . . . . . . . . . . . . . . . . . Part Schematics Acquired . | . . . . . . . . . . . . . . . . . . . . . . . . . . Parts Damaged . | . . . . . . . . . . . . . . . . . . . . . . . . . . Bothacking | -11 -10 -10 -9 -9 -9 -8 -8 -8 -8 -8 -7 -7 -7 -7 -6 -6 -6 -6 -5 -5 -5 -5 -4 -4 -4 ------------ Run | Yrd Mat Min Mat Min Exi Min Mat Gar Mat Gar Fac Was Fac Gar Fac Was Fac Gar Fac Gar Fac Gar Fac Was Fac Used RIF Installer 7 | . . . . . . . . 1 . 1 . . . 2 . . . 1 . 1 . 1 . . . Signal Jammer 1 | . . . . . . . . . . . . . . . . . . 1 . . . . . . . Zone Cloak 1 | . . . . . . . . . . . . . . 1 . . . . . . . . . . . Structural Interface 1 | . . . . . . . . . . . . . . . . . . . . 1 . . . . . Program Shield 1 | . . . . . . . . . . 1 . . . . . . . . . . . . . . . Autooverride 1 | . . . . . . . . . . . . . . 1 . . . . . . . . . . . Autoassimilate 1 | . . . . . . . . . . . . . . . . . . . . . . 1 . . . Robots Hacked 102 | . . . . . . . . . . 3 1 6 . 6 2 6 5 9 3 12 19 16 . 4 10 Non-combat 18 | . . . . . . . . . . . 1 . . . 2 . 1 . 3 . 6 1 . . 4 Combat 84 | . . . . . . . . . . 3 . 6 . 6 . 6 4 9 . 12 13 15 . 4 6 Autooverrided 12 | . . . . . . . . . . . . . . . . . 1 1 . 5 2 2 . . 1 Robot Hacks Applied 105 | . . . . . . . . . . 3 1 7 . 7 2 7 6 8 3 7 22 17 . 4 11 parse_system 10 | . . . . . . . . . . . . 1 . . . 1 . 2 . 1 2 3 . . . find_chute 3 | . . . . . . . . . . . 1 . . . 1 . . . 1 . . . . . . find_fabricator 1 | . . . . . . . . . . . . . . . . . . . . . 1 . . . . drop_inventory 7 | . . . . . . . . . . . . . . . 1 . . . 1 . 2 . . . 3 purge_threat 6 | . . . . . . . . . . . . . . . . . 2 . . . 4 . . . . redirect_shields 2 | . . . . . . . . . . . . . . . . . . . . . 1 1 . . . ignore_targets 16 | . . . . . . . . . . . . 6 . . . 6 . . . . . . . 4 . find_garrison 3 | . . . . . . . . . . . . . . . . . 1 . . . 1 . . . 1 disrupt_area 2 | . . . . . . . . . . . . . . . . . . . . . 1 1 . . . overload_power 2 | . . . . . . . . . . . . . . 1 . . . 1 . . . . . . . amplify_resonance 11 | . . . . . . . . . . 2 . . . 2 . . 1 3 . . 2 1 . . . overwrite_iff 20 | . . . . . . . . . . 1 . . . 3 . . 1 2 . 3 2 7 . . 1 formatsys_low 3 | . . . . . . . . . . . . . . . . . 1 . 1 . 1 . . . . formatsys_high 19 | . . . . . . . . . . . . . . 1 . . . . . 3 5 4 . . 6 Relay Couplers Released 81 | . . . . . . . . 5 . 11 . . . 5 . . 4 20 . 12 . 21 . . 3 Ejected 4 | . . . . . . . . . . . . . . . . . 4 . . . . . . . . Machine Destruction 66 | . . . . . . . . 5 . 7 . . . 5 . . . 16 . 12 . 18 . . 3 Programmers 11 | . . . . . . . . . . 4 . . . . . . . 4 . . . 3 . . . Attached 30 | . . . . . . . . . . 2 . 1 . 2 1 . 2 2 1 6 4 5 1 . 3 Fabnet Peak Effective % . | . . . . . . . . . . . . . . . . . . . . . . . . . . Robots Rewired 22 | . . . . . . . . . . 3 . . . . . . . 12 . 7 . . . . . Allies Hacked . | . . . . . . . . . . . . . . . . . . . . . . . . . . Hacks Repelled . | . . . . . . . . . . . . . . . . . . . . . . . . . . Allies | -11 -10 -10 -9 -9 -9 -8 -8 -8 -8 -8 -7 -7 -7 -7 -6 -6 -6 -6 -5 -5 -5 -5 -4 -4 -4 -------- Run | Yrd Mat Min Mat Min Exi Min Mat Gar Mat Gar Fac Was Fac Gar Fac Was Fac Gar Fac Gar Fac Gar Fac Was Fac Total Allies 103 | . . 4 . . . . 1 . . 5 . 1 . 4 . 19 3 17 1 18 11 11 . . 8 Largest Group 19 | . . 4 3 . . . 1 1 1 4 3 1 . 2 1 19 16 8 5 6 7 3 1 1 3 Highest-Rated Group 702 | . . 71 40 . . . 10 9 9 129 80 31 . 48 32 702 581 244 170 235 396 162 64 64 147 Highest-Rated Ally 148 | . . 31 16 . . . 10 9 9 40 40 31 . 32 32 50 46 51 51 148 148 64 64 64 111 Total Orders 27 | . . . . . . . . 6 2 6 . . . . . . . 3 1 2 4 2 . . 1 STAY 12 | . . . . . . . . 3 1 3 . . . . . . . 2 . 1 1 1 . . . FOLLOW 11 | . . . . . . . . 3 1 3 . . . . . . . 1 . 1 1 1 . . . AID 4 | . . . . . . . . . . . . . . . . . . . 1 . 2 . . . 1 Ally Attacks 679 | . . . 32 . . . . . . 38 7 31 . 18 2 79 99 25 12 71 175 62 . . 28 Total Damage 16106 | . . . 293 . . . . . . 746 42 477 . 482 46 2222 2170 416 450 1821 3963 1921 . . 1057 Kills 93 | . . . 5 . . . . . . 8 . . . 3 . 4 15 3 2 10 28 11 . . 4 Allies Corrupted 1 | . . . . . . . . . . . . . . . . . . . . . . . . . 1 Allies Melted 3 | . . . . . . . . . . . . . . . . . 2 . . 1 . . . . . Intel | -11 -10 -10 -9 -9 -9 -8 -8 -8 -8 -8 -7 -7 -7 -7 -6 -6 -6 -6 -5 -5 -5 -5 -4 -4 -4 ------- Run | Yrd Mat Min Mat Min Exi Min Mat Gar Mat Gar Fac Was Fac Gar Fac Was Fac Gar Fac Gar Fac Gar Fac Was Fac Active Infowar (turns) 1489 | . . . . . . . . . . . . . . . . . . . . . . . 68 108 1313 Terrain 1489 | . . . . . . . . . . . . . . . . . . . . . . . 68 108 1313 Robot Analysis Total 2 | . . . 2 . . . . . . . . . . . . . . . . . . . . . . Derelict Logs Recovered 5 | . . 2 . 3 . . . . . . . . . . . . . . . . . . . . . Drone Launches . | . . . . . . . . . . . . . . . . . . . . . . . . . . Drone Recoveries . | . . . . . . . . . . . . . . . . . . . . . . . . . . Exploration | -11 -10 -10 -9 -9 -9 -8 -8 -8 -8 -8 -7 -7 -7 -7 -6 -6 -6 -6 -5 -5 -5 -5 -4 -4 -4 ------------- Run | Yrd Mat Min Mat Min Exi Min Mat Gar Mat Gar Fac Was Fac Gar Fac Was Fac Gar Fac Gar Fac Gar Fac Was Fac Turns Passed 27682 | 84 1547 1034 1923 934 358 504 1936 626 2567 1362 603 632 430 1315 658 890 1048 2158 876 1446 1383 1685 135 108 1440 Spaces Moved 13828 | 51 767 613 1009 537 259 458 1348 399 1269 799 246 170 131 456 194 311 432 872 388 731 770 638 89 72 819 Core 10 | 10 . . . . . . . . . . . . . . . . . . . . . . . . . Treads 7177 | 41 767 613 1009 537 168 . . . . . . 128 131 456 194 311 432 872 388 84 . 136 89 72 749 Legs 6641 | . . . . . 91 458 1348 399 1269 799 246 42 . . . . . . . 647 770 502 . . 70 Wheels . | . . . . . . . . . . . . . . . . . . . . . . . . . . Hover . | . . . . . . . . . . . . . . . . . . . . . . . . . . Flight . | . . . . . . . . . . . . . . . . . . . . . . . . . . Fastest Speed 50 | 50 160 160 160 160 90 90 60 60 103 103 170 176 240 160 240 240 200 200 200 133 133 150 145 145 117 Average Speed 160 | 146 160 160 160 160 135 95 99 118 153 135 200 231 240 213 240 240 228 200 200 150 153 193 145 145 144 Slowest Speed 385 | 160 160 160 160 160 160 100 100 176 179 179 250 385 240 240 240 240 240 200 213 220 203 305 150 145 225 Overloaded Moves 28 | . . . . . . . 17 6 . . 5 . . . . . . . . . . . . . . Propulsion Burnouts . | . . . . . . . . . . . . . . . . . . . . . . . . . . Robots Hopped . | . . . . . . . . . . . . . . . . . . . . . . . . . . Potential Cave-ins . | . . . . . . . . . . . . . . . . . . . . . . . . . . Cave-ins Triggered . | . . . . . . . . . . . . . . . . . . . . . . . . . . Exploration Rate (%) 59 | 4 93 95 80 98 69 91 88 53 75 87 10 85 6 74 7 88 15 88 8 90 23 95 4 81 28 Regions Visited 25 Branch Regions 4 Pre-discovered Areas 7 | . 3 . 2 . 1 . 1 . . . . . . . . . . . . . . . . . . Known Exits Taken 10 | . 1 1 1 . . 1 1 . 1 . . . 1 . . . 1 . 1 . 1 . . . . Unknown Exits Taken 3 | 1 . . . 1 1 . . . . . . . . . . . . . . . . . . . . Scrap Searched 4 | . . 1 . 2 . 1 . . . . . . . . . . . . . . . . . . . Spaces Dug 93 | . . . . . . 13 . . 2 1 . . 1 . 1 . 2 15 6 . 2 . . . 50 Terrain Destroyed 571 | . . . 11 . . 71 12 38 32 25 3 4 27 89 46 4 2 32 18 3 8 58 . . 88 Melee . | . . . . . . . . . . . . . . . . . . . . . . . . . . Projectile 149 | . . . . . . . . 1 24 1 3 4 1 8 22 4 2 22 18 3 6 6 . . 24 AOE 422 | . . . 11 . . 71 12 37 8 24 . . 26 81 24 . . 10 . . 2 52 . . 64 Terrain Rammed . | . . . . . . . . . . . . . . . . . . . . . . . . . . Walls Destroyed . | . . . . . . . . . . . . . . . . . . . . . . . . . . Machines Disabled . | . . . . . . . . . . . . . . . . . . . . . . . . . . Actions | -11 -10 -10 -9 -9 -9 -8 -8 -8 -8 -8 -7 -7 -7 -7 -6 -6 -6 -6 -5 -5 -5 -5 -4 -4 -4 --------- Run | Yrd Mat Min Mat Min Exi Min Mat Gar Mat Gar Fac Was Fac Gar Fac Was Fac Gar Fac Gar Fac Gar Fac Was Fac Total 17450 | 58 990 642 1245 584 265 499 1856 485 1710 969 295 298 238 635 282 380 465 1116 447 961 915 945 95 75 1000 Wait 1554 | . 118 5 122 6 . 5 389 25 304 61 4 20 96 14 6 7 3 29 14 68 50 145 . . 63 Move 13811 | 50 766 612 1008 536 258 457 1348 398 1269 798 246 169 131 455 194 310 431 871 388 730 770 637 89 71 819 Hop . | . . . . . . . . . . . . . . . . . . . . . . . . . . Pick Up 160 | 2 13 2 11 2 3 1 10 5 9 7 3 8 1 14 1 3 1 8 3 20 4 15 1 . 13 Fast Attach 61 | 6 3 . 3 . . 2 3 . 6 4 . 3 . 4 1 1 1 1 1 4 4 3 2 . 9 Attach 82 | . . . 2 . . . 2 4 1 1 2 2 1 16 3 5 . 3 3 5 6 8 1 . 17 Detach 40 | . . . . . . 1 . . 1 1 . 8 . 8 1 5 1 1 . 4 2 3 . . 4 Swap 172 | . 7 . 9 5 3 8 10 6 4 15 8 8 5 2 3 . 6 8 2 16 17 22 1 . 7 Drop 140 | . 3 2 17 6 1 . 12 3 12 8 2 14 . 12 . 3 1 6 1 17 6 6 1 . 7 Fire 1176 | . 46 9 57 24 . 19 77 39 87 69 30 66 4 85 72 45 20 129 32 77 48 87 . 4 50 Melee . | . . . . . . . . . . . . . . . . . . . . . . . . . . Ram . | . . . . . . . . . . . . . . . . . . . . . . . . . . Kick 38 | . . . . . . 6 5 2 17 . . . . . . . . . . . 3 2 . . 3 Crush 100 | . 4 12 16 5 . . . . . . . . . 23 1 1 1 26 3 . . . . . 8 Escape Stasis 58 | . . . . . . . . 3 . 5 . . . 2 . . . 9 . 19 5 15 . . . Rewire 28 | . . . . . . . . . . . . . . . . . . 25 . 1 . 2 . . . Trap 30 | . 30 . . . . . . . . . . . . . . . . . . . . . . . . Miscellaneous . | . . . . . . . . . . . . . . . . . . . . . . . . . . Route ------- -11/Scrapyard -10/Materials (discovered 4 exits: *Mat x3 / *Min) -10/Mines (discovered 2 exits: *Mat x2) -9/Materials (discovered 6 exits: *Mat x3 / *Min x2 / [*Sto]) -9/Mines (discovered 3 exits: *Mat x2 / *Exi) -9/Exiles -8/Mines -8/Materials (discovered 4 exits: *Fac x3 / Gar) -8/Garrison (discovered 4 exits: *Mat x4) -8/Materials (discovered 4 exits: *Fac x3 / Gar) -8/Garrison (discovered 3 exits: *Fac x3) -7/Factory (discovered 3 exits: Fac x2 / *Low) -7/Waste -7/Factory -7/Garrison (discovered 3 exits: *Fac x3) -6/Factory -6/Waste -6/Factory (discovered 2 exits: [*Low] / Gar) -6/Garrison (discovered 3 exits: *Fac x3) -5/Factory -5/Garrison (discovered 4 exits: *Fac x4) -5/Factory -5/Garrison (discovered 3 exits: *Fac x3) -4/Factory -4/Waste -4/Factory (discovered 1 exit: [*Upp]) History --------- Turn | Location | Event 10 | -11/Scrapyard | Discovered new exit (range 15) 85 | -11/Scrapyard | Entered Materials 183 | -10/Materials | Discovered new exit (range 14) 303 | -10/Materials | Build established: Mutant 438 | -10/Materials | Discovered new exit (range 4) 596 | -10/Materials | Discovered new exit (range 10) 918 | -10/Materials | Identified exit to Materials 969 | -10/Materials | Learned location of 1 exit from Storage 1010 | -10/Materials | Identified exit to Mines 1043 | -10/Materials | Learned 4 Recycling zone layouts 1065 | -10/Materials | Learned location of 1 exit from Recycling 1096 | -10/Materials | Learned location of Subcaves (-10) 1315 | -10/Materials | Repaired Shotgun 1342 | -10/Materials | Repaired Lgt. Treads 1632 | -10/Materials | Entered Mines 1672 | -10/Mines | Learned Materials stockpile data 2048 | -10/Mines | Assisted by bots powering up and referring to "LRC-V3" 2119 | -10/Mines | Received a Mining Laser from a helpful Derelict 2119 | -10/Mines | Discovered exit to Materials (range 14) 2317 | -10/Mines | Met a Derelict shopkeep closing up shop 2461 | -10/Mines | Learned 2 Materials zone layouts 2479 | -10/Mines | A weapon hastily lodged in a ceiling crevice suddenly fell to the ground 2666 | -10/Mines | Entered Materials 2666 | -9/Materials | Accompanied by 3 allies 2666 | -9/Materials | Evolved 2 slots: Propulsion x1, Utility x1 2667 | -9/Materials | Identified exit to Materials 2983 | -9/Materials | Discovered exit to Materials (range 16) 3259 | -9/Materials | Repaired Lgt. Nuclear Core 3416 | -9/Materials | Discovered new exit (range 9) 3641 | -9/Materials | Discovered new exit (range 2) 3806 | -9/Materials | Discovered exit to Materials (range 16) 3842 | -9/Materials | Identified exit to Mines 4006 | -9/Materials | Learned location of Mines (-9) 4042 | -9/Materials | Learned Materials stockpile data 4107 | -9/Materials | Learned 4 Recycling zone layouts 4151 | -9/Materials | Central database locked down 4153 | -9/Materials | Loaded intel: 19 trap records 4164 | -9/Materials | Destroyed 9 combat bots 4471 | -9/Materials | Repaired Enh. Autogun 4589 | -9/Materials | Entered Mines 4995 | -9/Mines | Deemed a non-threat by the Exiles lab entrance 5222 | -9/Mines | Learned 2 Materials zone layouts 5249 | -9/Mines | Learned Materials stockpile data 5321 | -9/Mines | Joined a pair of Derelicts in attacking an 0b10 outpost 5517 | -9/Mines | Discovered new exit (range 5) 5523 | -9/Mines | Entered Exiles 5563 | -9/Exiles | Met 8R-AWN 5589 | -9/Exiles | Met EX-HEX 5672 | -9/Exiles | Met EX-DEC 5709 | -9/Exiles | Met EX-BIN 5731 | -9/Exiles | Aligned with FarCom system 5733 | -9/Exiles | Given EX-Vault access code 5773 | -9/Exiles | Opened EX-Vault 5786 | -9/Exiles | Found Superbattery 5793 | -9/Exiles | Found Potential Leg 5796 | -9/Exiles | Found Potential Leg 5816 | -9/Exiles | Warned to stay clear of 0b10 Research branches 5825 | -9/Exiles | Exiles lab attacked by MAIN.C 5846 | -9/Exiles | Learned location of Zion (-6) 5874 | -9/Exiles | Discovered new exit (range 10) 5881 | -9/Exiles | Stole two prototypes: Potential Leg, Superbattery 5881 | -9/Exiles | Entered Mines 6385 | -8/Mines | Entered Materials 6385 | -8/Materials | Evolved 2 slots: Utility x2 6386 | -8/Materials | Identified exit to Factory 6594 | -8/Materials | Discovered exit to Factory (range 15) 6787 | -8/Materials | Discovered exit to Factory (range 9) 6789 | -8/Materials | Garrison activated, responded to threat 6962 | -8/Materials | Central database locked down 7137 | -8/Materials | Garrison activated, responded to threat 7187 | -8/Materials | Learned Factory emergency access door positions 7261 | -8/Materials | Learned location of 2 exits from Factory 7327 | -8/Materials | Learned 4 Factory zone layouts 7461 | -8/Materials | Learned Storage trap positions 7558 | -8/Materials | Learned Factory stockpile data 7778 | -8/Materials | Garrison activated, responded to threat 8010 | -8/Materials | Repaired Broken Enh. Autogun 8071 | -8/Materials | Repaired Enh. Autogun 8104 | -8/Materials | Repaired Cooling System 8321 | -8/Materials | Identified exit to Garrison 8321 | -8/Materials | Entered Garrison 8321 | -8/Garrison | Accompanied by 1 ally 8338 | -8/Garrison | Discovered new exit (range 49) 8338 | -8/Garrison | Discovered new exit (range 43) 8338 | -8/Garrison | Discovered new exit (range 66) 8338 | -8/Garrison | Discovered new exit (range 36) 8357 | -8/Garrison | Triggered checkpoint 8448 | -8/Garrison | Triggered checkpoint 8511 | -8/Garrison | Triggered checkpoint 8523 | -8/Garrison | Installed Relay Interface Framework 8535 | -8/Garrison | Garrison Relay disabled 8881 | -8/Garrison | Triggered checkpoint 8947 | -8/Garrison | Entered Materials 8947 | -8/Materials | Accompanied by 1 ally 9073 | -8/Materials | Build established: Bothacker-Mutant 9448 | -8/Materials | Discovered exit to Factory (range 10) 10460 | -8/Materials | Discovered exit to Factory (range 4) 10967 | -8/Materials | Central database locked down 11040 | -8/Materials | Learned Storage emergency access door positions 11084 | -8/Materials | Repaired Cld. Particle Cannon? 11105 | -8/Materials | Learned Factory emergency access door positions 11166 | -8/Materials | Repaired Cld. Particle Cannon? 11209 | -8/Materials | Learned location of 2 exits from Lower Caves 11244 | -8/Materials | Repaired Hardlight Generator? 11245 | -8/Materials | Learned Storage trap positions 11309 | -8/Materials | Learned Storage emergency access door positions 11514 | -8/Materials | Identified exit to Garrison 11514 | -8/Materials | Entered Garrison 11514 | -8/Garrison | Accompanied by 1 ally 11536 | -8/Garrison | Triggered checkpoint 11656 | -8/Garrison | Triggered checkpoint 11801 | -8/Garrison | Core integrity fell below 50% 11838 | -8/Garrison | Triggered checkpoint 11840 | -8/Garrison | Triggered checkpoint 11884 | -8/Garrison | Triggered checkpoint 11909 | -8/Garrison | Destroyed 7 combat bots 11909 | -8/Garrison | Triggered checkpoint 12103 | -8/Garrison | Discovered exit to Factory (range 8) 12145 | -8/Garrison | Triggered checkpoint 12167 | -8/Garrison | Garrison Relay disabled 12342 | -8/Garrison | Triggered checkpoint 12362 | -8/Garrison | Expanded RIF knowledge: Program Shield 12372 | -8/Garrison | Garrison Relay disabled 12397 | -8/Garrison | Spotted B-75 Beast 12546 | -8/Garrison | Discovered exit to Factory (range 8) 12552 | -8/Garrison | Allies destroyed B-75 Beast 12618 | -8/Garrison | Rescued a captive Derelict 12832 | -8/Garrison | Triggered checkpoint 12850 | -8/Garrison | Discovered exit to Factory (range 86) 12850 | -8/Garrison | Discovered exit to Factory (range 13) 12850 | -8/Garrison | Discovered exit to Factory (range 46) 12876 | -8/Garrison | Entered Factory 12876 | -7/Factory | Accompanied by 3 allies 12876 | -7/Factory | Evolved 2 slots: Propulsion x1, Utility x1 12877 | -7/Factory | Identified exit to Lower Caves 12878 | -7/Factory | Identified exit to Factory 12878 | -7/Factory | FarCom data flow suspended 13479 | -7/Factory | Sucked down chute 13479 | -7/Factory | Entered Waste 13480 | -7/Waste | Met a frightened Derelict 13494 | -7/Waste | EMP discharged 13497 | -7/Waste | Spotted C-40 Crusher 13518 | -7/Waste | Spotted C-40 Crusher 13525 | -7/Waste | Spotted C-40 Crusher 13533 | -7/Waste | Destroyed C-40 Crusher 13547 | -7/Waste | Spotted C-40 Crusher 13548 | -7/Waste | Found Damper Plating 13558 | -7/Waste | Spotted C-40 Crusher 13562 | -7/Waste | Spotted C-40 Crusher 13594 | -7/Waste | EMP discharged 13601 | -7/Waste | Destroyed C-40 Crusher 13694 | -7/Waste | EMP discharged 13734 | -7/Waste | Destroyed C-40 Crusher 13794 | -7/Waste | EMP discharged 13807 | -7/Waste | Destroyed C-40 Crusher 13894 | -7/Waste | EMP discharged 13921 | -7/Waste | Destroyed C-40 Crusher 13994 | -7/Waste | EMP discharged 14009 | -7/Waste | Discovered new exit (range 15) 14046 | -7/Waste | Destroyed C-40 Crusher 14094 | -7/Waste | EMP discharged 14111 | -7/Waste | Entered Factory 14447 | -7/Factory | Identified exit to Garrison 14541 | -7/Factory | Entered Garrison 14609 | -7/Garrison | Phase Generator disabled 14769 | -7/Garrison | Discovered exit to Factory (range 35) 14769 | -7/Garrison | Discovered exit to Factory (range 62) 14769 | -7/Garrison | Discovered exit to Factory (range 75) 14787 | -7/Garrison | Triggered checkpoint 14823 | -7/Garrison | Expanded RIF knowledge: Zone Cloak 14990 | -7/Garrison | Destroyed 13 combat bots 14997 | -7/Garrison | Triggered checkpoint 15117 | -7/Garrison | H-XX Assembler disabled 15237 | -7/Garrison | Triggered checkpoint 15317 | -7/Garrison | Triggered checkpoint 15402 | -7/Garrison | Triggered checkpoint 15490 | -7/Garrison | Expanded RIF knowledge: Autooverride 15506 | -7/Garrison | Garrison Relay disabled 15856 | -7/Garrison | Entered Factory 15856 | -6/Factory | Accompanied by 1 ally 15856 | -6/Factory | Evolved 2 slots: Power x1, Weapon x1 16152 | -6/Factory | Garrison activated, responded to threat 16165 | -6/Factory | Build established: Bothacker-Tank 16220 | -6/Factory | Destroyed 7 combat bots 16514 | -6/Factory | Sucked down chute 16514 | -6/Factory | Entered Waste 16552 | -6/Waste | Spotted C-40 Crusher 16553 | -6/Waste | Spotted C-40 Crusher 16559 | -6/Waste | Spotted C-40 Crusher 16584 | -6/Waste | Spotted C-40 Crusher 16587 | -6/Waste | Spotted C-40 Crusher 16591 | -6/Waste | Spotted C-40 Crusher 16609 | -6/Waste | Destroyed C-40 Crusher 16740 | -6/Waste | Destroyed C-40 Crusher 16832 | -6/Waste | Destroyed C-40 Crusher 16879 | -6/Waste | Discovered new exit (range 16) 17198 | -6/Waste | Warlord forces began an assault 17245 | -6/Waste | Allies destroyed C-40 Crusher 17309 | -6/Waste | Allies destroyed C-40 Crusher 17404 | -6/Waste | Entered Factory 17404 | -6/Factory | Accompanied by 16 allies 17659 | -6/Factory | Lost 4 allies 18274 | -6/Factory | Lost 5 allies 18289 | -6/Factory | Discovered new exit (range 5) 18329 | -6/Factory | Lost 4 allies 18369 | -6/Factory | Identified exit to Garrison 18452 | -6/Factory | Entered Garrison 18452 | -6/Garrison | Accompanied by 1 ally 18608 | -6/Garrison | Learned Factory security intel 18620 | -6/Garrison | Triggered checkpoint 18649 | -6/Garrison | Garrison Relay disabled 18811 | -6/Garrison | Triggered checkpoint 18904 | -6/Garrison | Triggered checkpoint 19234 | -6/Garrison | Triggered checkpoint 19260 | -6/Garrison | Garrison Relay disabled 19340 | -6/Garrison | Discovered new exit (range 12) 19736 | -6/Garrison | Triggered checkpoint 19769 | -6/Garrison | Lost 4 allies 19786 | -6/Garrison | Expanded RIF knowledge: Signal Jamming 19824 | -6/Garrison | Garrison Relay disabled 19884 | -6/Garrison | Discovered new exit (range 13) 20066 | -6/Garrison | Triggered checkpoint 20127 | -6/Garrison | Garrison Relay disabled 20346 | -6/Garrison | Discovered new exit (range 10) 20414 | -6/Garrison | Phase Generator disabled 20436 | -6/Garrison | Rescued a captive Derelict 20437 | -6/Garrison | Rescued a captive Derelict 20445 | -6/Garrison | Lost 5 allies 20480 | -6/Garrison | Build established: Botlord-Tank 20610 | -6/Garrison | Entered Factory 20610 | -5/Factory | Accompanied by 5 allies 20610 | -5/Factory | Evolved 2 slots: Propulsion x1, Utility x1 21022 | -5/Factory | P-70 Sage assimilated allied Smith 6a 21088 | -5/Factory | Build established: Bothacker-Tank 21210 | -5/Factory | First assault squad dispatched 21486 | -5/Factory | Identified exit to Garrison 21486 | -5/Factory | Entered Garrison 21608 | -5/Garrison | Triggered checkpoint 21736 | -5/Garrison | Spotted B-75 Beast 21768 | -5/Garrison | Allies destroyed B-75 Beast 21836 | -5/Garrison | Triggered checkpoint 21840 | -5/Garrison | Triggered checkpoint 21845 | -5/Garrison | Triggered checkpoint 21898 | -5/Garrison | Spotted B-75 Beast 21934 | -5/Garrison | Destroyed B-75 Beast 21941 | -5/Garrison | Lost 3 allies 21948 | -5/Garrison | Triggered checkpoint 22042 | -5/Garrison | Expanded RIF knowledge: Structural Interface 22058 | -5/Garrison | Triggered checkpoint 22082 | -5/Garrison | Garrison Relay disabled 22115 | -5/Garrison | Discovered new exit (range 14) 22144 | -5/Garrison | Build established: Botlord-Tank 22316 | -5/Garrison | Triggered checkpoint 22487 | -5/Garrison | Discovered new exit (range 10) 22502 | -5/Garrison | Triggered checkpoint 22560 | -5/Garrison | Learned Factory security intel 22655 | -5/Garrison | Discovered new exit (range 8) 22670 | -5/Garrison | Spotted B-90 Cyclops 22719 | -5/Garrison | Destroyed B-90 Cyclops 22729 | -5/Garrison | Spotted B-75 Beast 22746 | -5/Garrison | Rewired B-90 Cyclops 22897 | -5/Garrison | Discovered new exit (range 3) 22932 | -5/Garrison | Entered Factory 22932 | -5/Factory | Accompanied by 4 allies 23216 | -5/Factory | Fabricated M-13 Machinist (x1) 23466 | -5/Factory | Repaired Hvy. Shield Leg? 23532 | -5/Factory | First assault squad dispatched 24273 | -5/Factory | Lost 4 allies 24315 | -5/Factory | Identified exit to Garrison 24315 | -5/Factory | Entered Garrison 24315 | -5/Garrison | Accompanied by 2 allies 24446 | -5/Garrison | Garrison Relay disabled 24467 | -5/Garrison | Triggered checkpoint 24580 | -5/Garrison | Spotted B-75 Beast 24600 | -5/Garrison | Destroyed B-75 Beast 24618 | -5/Garrison | Lost 4 allies 24631 | -5/Garrison | Triggered checkpoint 24733 | -5/Garrison | Garrison Relay disabled 24835 | -5/Garrison | Discovered new exit (range 11) 24885 | -5/Garrison | Triggered checkpoint 24928 | -5/Garrison | Garrison Relay disabled 25083 | -5/Garrison | Triggered checkpoint 25120 | -5/Garrison | Triggered checkpoint 25241 | -5/Garrison | Expanded RIF knowledge: Autoassimilate 25297 | -5/Garrison | Triggered checkpoint 25341 | -5/Garrison | Spotted Striker 25343 | -5/Garrison | Spotted Striker 25389 | -5/Garrison | Destroyed Striker 25399 | -5/Garrison | Destroyed Striker 25441 | -5/Garrison | Garrison Relay disabled 25487 | -5/Garrison | Discovered new exit (range 10) 25586 | -5/Garrison | Triggered checkpoint 25713 | -5/Garrison | Spotted B-75 Beast 25864 | -5/Garrison | Discovered new exit (range 10) 26000 | -5/Garrison | Entered Factory 26000 | -4/Factory | Accompanied by 1 ally 26000 | -4/Factory | Evolved 2 slots: Propulsion x1, Utility x1 26135 | -4/Factory | Sucked down chute 26135 | -4/Factory | Entered Waste 26140 | -4/Waste | 1 allies followed down the chute 26146 | -4/Waste | Spotted C-40 Crusher 26150 | -4/Waste | EMP discharged 26174 | -4/Waste | Spotted C-40 Crusher 26184 | -4/Waste | Spotted C-40 Crusher 26197 | -4/Waste | Spotted C-40 Crusher 26204 | -4/Waste | Spotted C-40 Crusher 26227 | -4/Waste | Discovered new exit (range 11) 26243 | -4/Waste | Entered Factory 26243 | -4/Factory | Accompanied by 1 ally 26287 | -4/Factory | System corruption reached 10% 26476 | -4/Factory | Central database locked down 26488 | -4/Factory | Discovered new exit (range 13) 26859 | -4/Factory | Found Quantum Capacitor 27196 | -4/Factory | Found Hvy. Reflective Plating 27364 | -4/Factory | Fabricated M-13 Machinist? 27534 | -4/Factory | Cargo convoy interrupted 27539 | -4/Factory | Spotted B-86 Titan 27547 | -4/Factory | Spotted Executioner 27595 | -4/Factory | Lost 9 parts (2p2n3u2w) 27613 | -4/Factory | System corruption reached 30% 27639 | -4/Factory | Core integrity fell below 50% 27675 | -4/Factory | Core integrity fell below 20% 27683 | -4/Factory | Destroyed by G-67 Veteran with Plasma Rifle Last Messages --------------- 27672_ Slug penetrates Wall. 27673_ Penetrated by Slug. 27673_ Knocked back. 27674_ Kicked H-71 Marshal out of the way. 27675_ H-71 Marshal calls for reinforcements. 27675_ ALERT: Hostile activity reported, dispatching reinforcements to area. 27675_ Knocked back. 27675_ Penetrated by Slug. 27675_ Myomer Leg destroyed. 27676_ Penetrated by Slug. 27677_ Knocked back. 27679_ Kicked Y-64 Sentinel. 27681_ Centrium Leg destroyed. 27681_ Penetrated by Slug. 27681_ Slug penetrates Wall. 27681_ Kicked Y-64 Sentinel. 27683_ System corrupted: Component data lost. 27683_ ALERT: Potential suspicious activity detected, Programmers report to Factory Zone 8G. Map ----- +----------------------------------------------------+ | ?????????????????????????????????????????????????? | | ?????????????????????????????????????????????????? | | ?????????????????????????????????????????????????? | | ? ???????????????????????????????????????????? | | #??????????????????????????????????????????? | | # #??????????????????????????????????????????? | | # #??????????????????????????????????????????? | | # #??????????????????????????????????????????? | | # #??????????????????????????????????????????? | | # #??????????????????????????????????????????? | | # #??????????????????????????????????????????? | | # #??????????????????????????????????????????? | | # #??????????????????????????????????????????? | | " ############+####??###?????????????????????? | | ? #?????????????????????? | | ? #?????????????????????? | | """ """ #?????????????????????? | | """ """ +?????????????????????? | | """ """ #?????????????????????? | | ####+#######??# #?????????????????????? | | #????# """ """ ############??????????? | | #????# """ """ ?????????? | | ###### """ """ ?????????? | | / xh h g ????????? | | ###### %ggg ????????? | | #????# %% @ ^????????? | | #????##########Y##########??????????????? | | #???????????? Hg ??????????????????????? | | ##########??????????"""g """"????????????????????? | | ??????????????????# "G """" ??????????????????? | | ??????????????????# """ """" #?????????????????? | | ??????????????????# """" #????????????????? | | ??????????????????? ????#????????????????? | | ??????????????????# ! ??????????????????????? | | ??????????????????# = ??????????????????????? | | ??????????????????# *!???????????????????????? | | ??????????????????# !! ??????????????????????? | | ??????????????????# ! ???????????????????????? | | ???????????????????? ] ???????????????????????? | | ???????????????????#######???????????????????????? | | ?????????????????????????????????????????????????? | | ?????????????????????????????????????????????????? | | ?????????????????????????????????????????????????? | | ?????????????????????????????????????????????????? | | ?????????????????????????????????????????????????? | | ?????????????????????????????????????????????????? | | ?????????????????????????????????????????????????? | | ?????????????????????????????????????????????????? | | ?????????????????????????????????????????????????? | | ?????????????????????????????????????????????????? | +----------------------------------------------------+ Best States ------------- Heat Dissipation 102 Energy Generation 45 Energy Capacity 1940 Matter Stores 300 Matter Capacity 300 Sight Range 16 Terrain Scan Range 20 Terrain Scan Density 10 Base Temperature (-) 200 Armor Coverage 1600 Resistance: TH 25 Resistance: EM 90 Evasion (%) 57 Targeting Accuracy 8 Recoil Reduction 6 Offensive Hacking 14 Relay Coupler Types 3 Relay Coupler Value 129 Authchip Count 1 Item Schematics ----------------- None Robot Schematics ------------------ M-13 Machinist | -9/Materials | Hacked Fabricated ------------ M-13 Machinist | x1 | -5/Factory | Authchip M-13 Machinist | x1 | -4/Factory Repaired ---------- Shotgun | 40% | -10/Materials Lgt. Treads | 57% | -10/Materials Lgt. Nuclear Core | 34% | -9/Materials Enh. Autogun | 76% | -9/Materials Enh. Autogun | 42% | -8/Materials | Broken Enh. Autogun | 68% | -8/Materials Cooling System | 8% | -8/Materials Cld. Particle Cannon | 16% | -8/Materials Cld. Particle Cannon | 48% | -8/Materials Hardlight Generator | 56% | -8/Materials Hvy. Shield Leg | 36% | -5/Factory Studied --------- Deuterium Engine | -8/Materials | Hacked Remote Datajack | -8/Materials | Hacked Hvy. Treads | -6/Factory | Hacked Imp. Remote Datajack | -5/Factory | Hacked Alien Tech Used ----------------- None Achievements -------------- Bumper Bots Physics Protects Taming Of The Crushers Challenges ------------ None Game ------ Seed ZhirovProtonShearcannon Manual? 0 Play Time 02:50:50 Cumulative 781.7 hours Start 2025.10.25 @ 10:14:16 End 2025.10.25 @ 18:56:00 Sessions 15 Manual Loads 0 Difficulty Rogue Special Mode None Game No. 394 Rogue 394 Adventurer 0 Explorer 0 Win Type - Total 65 Types 42/4/6/4/1/1/3/2/1/1 Lore% 92 Gallery% 85 Achievement% 65 Wizard Run 0 Options --------- Layout 0 ASCII 0 Keyboard 1 Movement Numpad Keybinds 0 Fullscreen 2 Font 18/SmallcapsGlow Map View 76x50 Zoom Use 0% Tactical HUD 1 Map Filters NONE Filters NONE Steam 1 RUN: 2cff7468-7f9a-431b-bc58-b075bfa3efaa